bitfinex/quotes_BTCUSD_20250331
["timestamp","ask_amount","ask_price","bid_price","bid_amount"]
[1743430327033,0.00046665,83388.0,83387.0,0.54219586]
[1743430327259,0.03571325,83404.0,83403.0,0.011989]
[1743430327260,6.9e-07,83404.0,83403.0,0.011989]
[1743430327460,0.00014044,83404.0,83403.0,0.54106936]
[1743430327676,0.00014044,83404.0,83403.0,0.53867186]
[1743430327879,0.00014044,83404.0,83403.0,0.53767186]
[1743430328603,0.239827,83394.0,83387.0,0.005]
[1743430328806,0.01199,83401.0,83388.0,0.011992]
[1743430329011,0.00113975,83404.0,83402.0,0.239801]
[1743430329205,0.00113975,83404.0,83403.0,0.011989]
[1743430329617,0.00113975,83404.0,83403.0,0.010989]
[1743430330026,0.00113975,83404.0,83383.0,0.16528]
[1743430330232,0.25292675,83404.0,83402.0,0.005]
[1743430330466,0.25292675,83404.0,83392.0,0.011991]
[1743430330467,0.251791,83403.0,83395.0,0.011991]
[1743430330707,0.251791,83403.0,83396.0,0.239818]
[1743430330708,0.239808,83400.0,83396.0,0.239818]
[1743430330918,0.239812,83399.0,83396.0,0.238818]
[1743430331120,0.01199,83399.0,83392.0,0.23983]
[1743430331329,0.011991,83393.0,83379.0,0.011993]
[1743430331542,0.01199,83396.0,83389.0,0.239836]
[1743430331727,0.01877838,83399.0,83398.0,0.01199]
[1743430331900,0.0111516,83403.0,83402.0,0.251792]
[1743430332121,3.5e-07,83404.0,83402.0,0.78299586]
[1743430332320,3.5e-07,83409.0,83408.0,0.251774]
[1743430332548,3.5e-07,83409.0,83408.0,0.94821786]
[1743430333392,3.5e-07,83409.0,83408.0,0.94721786]
[1743430333599,0.23978335,83409.0,83405.0,0.239792]
[1743430333805,0.239775,83412.0,83408.0,0.011989]
[1743430334004,0.001,83409.0,83408.0,0.005]
[1743430334208,0.012989,83409.0,83408.0,0.005]
[1743430334614,0.001,83409.0,83408.0,0.005]
[1743430334825,0.241782,83409.0,83408.0,0.005]
[1743430335462,0.241782,83409.0,83391.0,0.0765]
[1743430335463,0.239831,83392.0,83391.0,0.0765]
[1743430335667,0.011989,83404.0,83393.0,0.00013975]
[1743430335668,0.239826,83394.0,83393.0,0.00013975]
[1743430335871,0.251817,83394.0,83393.0,0.00013975]
[1743430336280,0.27059639,83394.0,83393.0,0.00013975]
[1743430336492,0.01877939,83394.0,83393.0,0.12274361]
[1743430336707,0.239823,83395.0,83393.0,0.00013975]
[1743430337318,0.01887776,83394.0,83393.0,0.00013975]
[1743430337525,0.00086025,83392.0,83391.0,0.005]
[1743430337900,0.01901743,83394.0,83392.0,0.251822]
[1743430338101,0.01901743,83394.0,83389.0,0.239837]
[1743430338102,0.01901743,83394.0,83393.0,0.12260386]
[1743430338326,0.01901743,83394.0,83393.0,0.12660386]
[1743430338527,0.03000843,83394.0,83393.0,0.004]
[1743430338695,0.011992,83382.0,83370.0,0.011994]
[1743430338896,0.011993,83376.0,83362.0,0.1652]
[1743430339107,0.23988,83375.0,83368.0,0.011995]
[1743430339309,0.239877,83376.0,83369.0,0.12260386]
[1743430339520,0.02234458,83375.0,83373.0,0.239885]
[1743430339748,0.02234458,83375.0,83374.0,0.13459786]
[1743430340531,0.239857,83383.0,83374.0,0.12260386]
[1743430340722,0.239857,83383.0,83373.0,0.011994]
[1743430340723,0.011993,83376.0,83370.0,0.011994]
[1743430340842,0.251865,83378.0,83371.0,0.251885]
[1743430341043,0.0187822,83381.0,83380.0,0.251858]
[1743430341252,0.0187822,83381.0,83380.0,0.78306186]
[1743430341499,0.011988,83412.0,83393.0,0.251819]
[1743430341700,0.23979,83407.0,83393.0,0.37342286]
[1743430341918,0.239807,83401.0,83393.0,0.37242286]
[1743430342122,0.01199,83398.0,83392.0,0.23983]
[1743430342326,0.239828,83393.0,83391.0,0.4086]
[1743430342528,0.251822,83392.0,83391.0,0.4076]
[1743430342734,0.02234586,83393.0,83392.0,0.011991]
[1743430343030,0.02234586,83393.0,83392.0,0.13359486]
[1743430343636,0.02234586,83393.0,83392.0,0.37342586]
[1743430345126,0.0335227,83393.0,83392.0,0.37342586]
[1743430345553,3.7e-07,83394.0,83393.0,0.251819]
[1743430345755,3.7e-07,83394.0,83393.0,0.37342286]
[1743430346789,3.7e-07,83394.0,83393.0,0.37942286]
[1743430347410,3.7e-07,83394.0,83393.0,0.79302286]
[1743430349495,3.7e-07,83394.0,83393.0,0.95814286]
[1743430351164,3.7e-07,83394.0,83393.0,0.95804694]
[1743430351372,3.7e-07,83394.0,83393.0,1.05804694]
[1743430354762,3.7e-07,83394.0,83393.0,2.28642321]
[1743430355085,0.25847699,83437.0,83421.0,0.251734]
[1743430355284,0.06713174,83447.0,83421.0,0.78193749]
[1743430355484,0.0124823,83453.0,83421.0,0.78193749]
[1743430355485,3.92299368,83450.0,83449.0,0.33395]
[1743430355686,3.92299368,83450.0,83449.0,0.90662963]
[1743430355687,2.60124768,83450.0,83449.0,0.90662963]
[1743430355887,0.0001684,83463.0,83462.0,0.251611]
[1743430356114,0.0001684,83463.0,83462.0,2.0476669]
[1743430356318,0.0001683,83493.0,83471.0,0.251584]
[1743430356516,0.0001683,83493.0,83471.0,1.55216027]
[1743430356967,0.0001683,83493.0,83471.0,1.67476413]
[1743430357422,0.0001683,83493.0,83471.0,1.67976413]
[1743430357626,0.0001683,83493.0,83479.0,0.25656]
[1743430357844,0.0001683,83493.0,83491.0,0.251523]
[1743430358094,0.0001683,83493.0,83491.0,0.78172649]
[1743430358095,0.01004073,83492.0,83491.0,0.78172649]
[1743430358491,0.01004073,83492.0,83491.0,1.93055676]
[1743430358669,0.01004073,83492.0,83491.0,1.92955676]
[1743430359168,0.01004073,83492.0,83491.0,1.76455676]
[1743430359369,0.01004073,83492.0,83491.0,0.95172649]
[1743430359370,0.01020913,83492.0,83491.0,0.95172649]
[1743430359527,0.01020913,83492.0,83491.0,0.78672649]
[1743430359710,0.01020913,83492.0,83491.0,1.57412649]
[1743430359915,0.01020913,83492.0,83491.0,1.40912649]
[1743430360111,0.01020913,83492.0,83491.0,1.57412649]
[1743430360319,0.01020913,83492.0,83491.0,1.32260349]
[1743430360512,0.24975213,83492.0,83491.0,0.53520349]
[1743430360989,0.01020913,83492.0,83491.0,0.53520349]
[1743430361448,0.26172913,83492.0,83491.0,0.54120349]
[1743430361650,0.26172913,83492.0,83491.0,0.41259963]
[1743430361883,0.239564,83485.0,83474.0,0.40659963]
[1743430362082,0.01020913,83492.0,83475.0,0.12260386]
[1743430362282,0.02218613,83492.0,83491.0,0.005]
[1743430362762,0.02218613,83492.0,83491.0,0.01]
[1743430362940,0.01020913,83492.0,83491.0,0.13260386]
[1743430363142,0.01020913,83492.0,83491.0,0.005]
[1743430363541,0.01020913,83492.0,83491.0,0.12760386]
[1743430363839,0.01020913,83492.0,83491.0,0.12260386]
[1743430364481,0.01020913,83492.0,83491.0,0.13458086]
[1743430364696,0.01020913,83492.0,83491.0,0.12260386]
[1743430364958,0.26172913,83492.0,83491.0,0.12260386]
[1743430365090,0.251571,83475.0,83474.0,0.40659963]
[1743430365294,0.01020913,83492.0,83478.0,0.239584]
[1743430365506,0.011977,83489.0,83479.0,0.12260386]
[1743430365719,0.251539,83486.0,83479.0,0.12260386]
[1743430366103,0.011978,83483.0,83479.0,0.12260386]
[1743430366305,0.239575,83482.0,83479.0,0.12260386]
[1743430366487,0.239577,83481.0,83479.0,0.12260386]
[1743430366716,0.239577,83481.0,83475.0,0.40659963]
[1743430366717,0.011979,83476.0,83475.0,0.40659963]
[1743430366868,0.251568,83476.0,83475.0,0.40659963]
[1743430367679,0.011979,83475.0,83474.0,0.006]
[1743430368283,0.011981,83460.0,83459.0,0.16488]
[1743430368482,0.25065253,83476.0,83475.0,0.06406]
[1743430368591,0.26263153,83476.0,83475.0,0.06406]
[1743430369673,0.01152918,83476.0,83475.0,0.18666386]
[1743430369923,0.01152918,83476.0,83475.0,0.18966386]
[1743430370243,0.04565296,83476.0,83475.0,0.06706]
[1743430370442,0.03367396,83476.0,83475.0,0.06706]
[1743430370675,0.03367396,83476.0,83475.0,0.18966386]
[1743430370878,0.03367396,83476.0,83475.0,0.19300026]
[1743430371281,0.03367396,83476.0,83475.0,0.18700026]
[1743430371575,0.01152918,83476.0,83475.0,0.19000026]
[1743430371935,0.01152918,83476.0,83475.0,0.36985926]
[1743430372217,0.01152918,83476.0,83475.0,0.37485926]
[1743430372218,0.00046565,83476.0,83475.0,0.37485926]
[1743430372446,0.00046565,83476.0,83475.0,0.36288026]
[1743430372564,0.00046565,83476.0,83475.0,0.19800026]
[1743430372764,0.25203365,83476.0,83475.0,0.0753964]
[1743430372972,0.25203365,83476.0,83475.0,0.0643964]
[1743430373475,0.25203365,83476.0,83475.0,0.0693964]
[1743430374026,0.00046565,83476.0,83475.0,0.0643964]
[1743430374206,0.02263445,83476.0,83475.0,0.0643964]
[1743430374408,0.02263445,83476.0,83475.0,0.19300026]
[1743430375017,0.02363445,83476.0,83475.0,0.19200026]
[1743430375461,0.02263445,83476.0,83475.0,0.18700026]
[1743430375667,0.02363445,83476.0,83475.0,0.19200026]
[1743430376640,0.03474271,83476.0,83475.0,0.19800026]
[1743430376842,0.01257391,83476.0,83475.0,0.19800026]
[1743430377050,0.01257391,83476.0,83475.0,0.20997926]
[1743430377452,0.01257391,83476.0,83475.0,0.19800026]
[1743430377679,0.01257391,83476.0,83475.0,0.43759226]
[1743430377887,0.00146565,83476.0,83475.0,0.19800026]
[1743430378096,0.00146565,83476.0,83475.0,0.85856645]
[1743430378248,0.00146565,83476.0,83475.0,1.02101089]
[1743430379474,0.00046565,83476.0,83475.0,1.01601089]
[1743430379898,0.00146565,83476.0,83475.0,0.85017089]
[1743430380070,0.00146565,83476.0,83475.0,1.02097089]
[1743430380485,0.00146565,83476.0,83475.0,0.76939989]
[1743430380684,0.00146565,83476.0,83475.0,1.01497089]
[1743430380922,0.00146565,83476.0,83475.0,1.02097089]
[1743430381530,0.00146565,83476.0,83475.0,1.01597089]
[1743430381810,0.0001682,83491.0,83490.0,0.251526]
[1743430382010,5e-08,83494.0,83492.0,0.239543]
[1743430382216,0.00224074,83499.0,83498.0,0.011976]
[1743430382468,1.41468774,83500.0,83499.0,0.011976]
[1743430382682,0.86398074,83500.0,83499.0,1.35795613]
[1743430382884,0.01875488,83538.0,83505.0,0.251481]
[1743430383099,0.00455789,83506.0,83505.0,0.37408486]
[1743430383332,0.00455789,83506.0,83505.0,0.77968449]
[1743430383721,0.00455789,83506.0,83505.0,0.12260386]
[1743430383947,0.24406089,83506.0,83505.0,0.12260386]
[1743430384153,0.0268505,83506.0,83499.0,0.006]
[1743430384355,0.0268505,83506.0,83505.0,0.12260386]
[1743430385101,0.00455789,83506.0,83505.0,0.12260386]
[1743430385319,0.00455789,83506.0,83505.0,0.12860386]
[1743430385894,0.00455789,83506.0,83505.0,0.29336386]
[1743430386094,0.01573392,83506.0,83505.0,0.30533886]
[1743430387395,0.01573392,83506.0,83505.0,0.29336386]
[1743430387618,0.01573392,83506.0,83505.0,0.29936386]
[1743430387820,0.01573392,83506.0,83505.0,0.13460386]
[1743430388158,0.01573392,83506.0,83505.0,0.12860386]
[1743430388452,0.01573392,83506.0,83505.0,0.13460386]
[1743430388656,0.01573392,83506.0,83505.0,0.14057886]
[1743430388887,0.01573392,83506.0,83505.0,0.14657886]
[1743430389095,0.00455789,83506.0,83505.0,0.55557313]
[1743430389296,3.5,83520.0,83519.0,0.011973]
[1743430389514,2.0002,83520.0,83519.0,3.92719054]
[1743430389664,2.0002,83520.0,83519.0,4.09191054]
[1743430389665,0.5004,83520.0,83519.0,4.09191054]
[1743430389867,0.03634,83520.0,83519.0,2.70433787]
[1743430390501,0.03634,83520.0,83519.0,2.61757887]
[1743430390715,0.03634,83520.0,83519.0,0.6938826]
[1743430390954,0.03634,83520.0,83519.0,0.28728386]
[1743430391519,0.03634,83520.0,83519.0,0.29328386]
[1743430391868,0.03634,83520.0,83519.0,0.12860386]
[1743430392076,0.03634,83520.0,83519.0,0.13460386]
[1743430392434,0.03634,83520.0,83519.0,0.12860386]
[1743430392630,0.04748832,83520.0,83519.0,0.13460386]
[1743430392836,0.04748832,83520.0,83519.0,0.14057686]
[1743430393092,0.04748832,83520.0,83519.0,0.13697124]
[1743430393301,0.04748832,83520.0,83519.0,0.18777686]
[1743430393520,0.04748832,83520.0,83519.0,1.41715313]
[1743430393722,0.04748832,83520.0,83519.0,1.40515313]
[1743430393922,0.03634,83520.0,83519.0,1.81175187]
[1743430394149,0.03634,83520.0,83519.0,1.81775187]
[1743430394348,0.03634,83520.0,83519.0,1.77055187]
[1743430394559,0.03634,83520.0,83519.0,1.76455187]
[1743430394892,0.03634,83520.0,83519.0,1.77055187]
[1743430395089,0.03634,83520.0,83519.0,1.77655187]
[1743430395493,0.0365082,83520.0,83519.0,1.77055187]
[1743430395691,0.0365082,83520.0,83519.0,1.77655187]
[1743430396111,0.0365082,83520.0,83519.0,1.77055187]
[1743430396517,0.0365082,83520.0,83519.0,1.93519187]
[1743430396911,0.0365082,83520.0,83519.0,2.17465787]
[1743430397306,0.002,83529.0,83520.0,0.37009054]
[1743430397455,0.002,83529.0,83528.0,0.37401586]
[1743430398194,0.002,83529.0,83528.0,0.45531586]
[1743430398430,0.002,83529.0,83528.0,1.67869213]
[1743430399242,0.002,83529.0,83528.0,0.12860386]
[1743430399449,0.002,83529.0,83528.0,0.36204386]
[1743430399686,0.002,83529.0,83528.0,0.37401586]
[1743430399889,0.002,83529.0,83528.0,1.97931385]
[1743430400107,0.002,83529.0,83528.0,2.02771385]
[1743430400274,9.1e-07,83529.0,83528.0,2.02671385]
[1743430400676,9.1e-07,83529.0,83528.0,2.03271385]
[1743430401246,9.1e-07,83529.0,83528.0,2.02671385]
[1743430401489,0.00867385,83535.0,83534.0,0.251394]
[1743430401700,0.00881343,83535.0,83534.0,0.37399786]
[1743430402322,7.3e-07,83536.0,83535.0,0.011971]
[1743430402605,7.3e-07,83536.0,83535.0,0.13457486]
[1743430402804,7.3e-07,83536.0,83535.0,0.13696825]
[1743430403039,7.3e-07,83536.0,83535.0,0.12260386]
[1743430403414,7.3e-07,83536.0,83535.0,0.28716386]
[1743430403621,7.3e-07,83536.0,83535.0,0.12860386]
[1743430403822,0.01197073,83536.0,83535.0,0.13460386]
[1743430404031,7.3e-07,83536.0,83535.0,0.12860386]
[1743430404248,7.3e-07,83536.0,83535.0,0.12260386]
[1743430405088,0.25138773,83536.0,83535.0,0.006]
[1743430405238,0.25138773,83536.0,83535.0,0.29312386]
[1743430405239,7.3e-07,83536.0,83535.0,0.29312386]
[1743430405448,7.3e-07,83536.0,83535.0,0.38599486]
[1743430405620,7.3e-07,83536.0,83535.0,0.13460386]
[1743430405822,7.3e-07,83536.0,83535.0,0.37999486]
[1743430406117,7.3e-07,83536.0,83535.0,0.29312386]
[1743430406332,7.3e-07,83536.0,83535.0,0.29912386]
[1743430406552,7.3e-07,83536.0,83535.0,0.12860386]
[1743430406777,7.3e-07,83536.0,83535.0,0.12260386]
[1743430406961,7.3e-07,83536.0,83535.0,0.12860386]
[1743430407387,7.3e-07,83536.0,83535.0,0.13460386]
[1743430407580,7.3e-07,83536.0,83535.0,0.12860386]
[1743430407784,7.3e-07,83536.0,83535.0,0.13460386]
[1743430408187,7.3e-07,83536.0,83535.0,0.38599486]
[1743430408458,0.00016883,83536.0,83535.0,0.38599486]
[1743430408821,0.00016883,83536.0,83535.0,0.54451486]
[1743430409379,0.00016883,83536.0,83535.0,0.12260386]
[1743430409606,0.011971,83534.0,83523.0,0.16452]
[1743430409814,0.011971,83534.0,83519.0,0.0003362]
[1743430409815,0.011972,83526.0,83524.0,0.12274344]
[1743430410109,0.251421,83525.0,83524.0,0.00013958]
[1743430410302,0.25142,83526.0,83524.0,0.00013958]
[1743430410510,0.011972,83525.0,83524.0,0.00013958]
[1743430410716,0.25142,83526.0,83524.0,0.00013958]
[1743430410916,0.02235737,83525.0,83524.0,0.00013958]
[1743430411335,0.03432937,83525.0,83524.0,0.00013958]
[1743430412576,0.03432937,83525.0,83490.0,0.6216]
[1743430412577,0.011976,83498.0,83486.0,0.00902156]
[1743430412787,0.251501,83499.0,83493.0,0.00013969]
[1743430412989,0.04864381,83525.0,83504.0,0.011975]
[1743430413206,0.01118644,83525.0,83505.0,0.13457886]
[1743430413405,0.01118644,83525.0,83524.0,0.006]
[1743430413584,0.011972,83525.0,83524.0,0.006]
[1743430413811,0.011972,83525.0,83505.0,0.12260386]
[1743430413812,0.239476,83516.0,83505.0,0.12260386]
[1743430413932,0.011974,83510.0,83505.0,0.12260386]
[1743430414138,0.011973,83515.0,83493.0,0.0817]
[1743430414139,0.011976,83494.0,83493.0,0.006]
[1743430414392,0.251514,83494.0,83493.0,0.12860386]
[1743430414590,0.239536,83495.0,83493.0,0.12260386]
[1743430414813,0.011976,83494.0,83493.0,0.12274355]
[1743430414995,0.011976,83494.0,83493.0,0.00013969]
[1743430415199,0.16452,83511.0,83493.0,0.12274355]
[1743430415399,0.011976,83494.0,83493.0,0.12274355]
[1743430415584,0.02316077,83494.0,83493.0,0.12274355]
[1743430415988,0.02316077,83494.0,83493.0,0.00013969]
[1743430416670,0.02316077,83494.0,83493.0,0.00613969]
[1743430417088,0.251568,83476.0,83475.0,0.0003364]
[1743430417864,0.69371271,83476.0,83475.0,4e-07]
[1743430418064,0.68871271,83476.0,83475.0,4e-07]
[1743430418252,0.251568,83476.0,83475.0,4e-07]
[1743430418460,0.26610885,83476.0,83475.0,4e-07]
[1743430418689,0.56610885,83476.0,83475.0,4e-07]
[1743430418888,0.68871271,83476.0,83475.0,4e-07]
[1743430419244,0.68871271,83476.0,83451.0,0.002]
[1743430419245,0.25164,83452.0,83451.0,0.002]
[1743430419522,0.25164,83452.0,83417.0,0.16452]
[1743430419523,0.251689,83436.0,83410.0,0.37009054]
[1743430419649,0.239704,83436.0,83435.0,0.12294006]
[1743430419865,0.239701,83437.0,83435.0,0.12294006]
[1743430419866,0.239702,83437.0,83435.0,0.12294006]
[1743430420059,0.239702,83437.0,83436.0,0.12260386]
[1743430420438,0.011984,83440.0,83436.0,0.12306951]
[1743430420439,0.239694,83440.0,83436.0,0.12306951]
[1743430420646,0.011985,83437.0,83436.0,0.00046565]
[1743430420851,0.24023835,83436.0,83435.0,0.0003362]
[1743430421094,0.25222335,83436.0,83435.0,0.12907978]
[1743430421269,0.251689,83436.0,83435.0,0.12907978]
[1743430421470,0.011983,83448.0,83435.0,0.12907978]
[1743430421643,0.2397,83438.0,83436.0,0.12260386]
[1743430421844,0.251689,83436.0,83435.0,0.00647592]
[1743430422257,0.251689,83436.0,83435.0,0.00047592]
[1743430422630,0.239704,83437.0,83435.0,0.00047592]
[1743430422830,1.04241849,83460.0,83435.0,0.12307978]
[1743430423031,0.251689,83436.0,83435.0,0.12307978]
[1743430423244,0.239671,83448.0,83435.0,0.12907978]
[1743430423443,1.04241849,83460.0,83436.0,0.12260386]
[1743430423644,0.011983,83450.0,83436.0,0.12260386]
[1743430423903,0.011982,83454.0,83436.0,0.12160386]
[1743430424106,0.011982,83458.0,83436.0,0.12160386]
[1743430424107,0.3,83462.0,83441.0,0.239687]
[1743430424406,0.239622,83465.0,83445.0,0.011983]
[1743430424559,0.03074773,83464.0,83446.0,0.36227886]
[1743430424770,0.011981,83462.0,83446.0,0.12260386]
[1743430424964,0.251645,83451.0,83446.0,0.12260386]
[1743430425172,0.011983,83450.0,83440.0,0.1646]
[1743430425355,0.239668,83449.0,83441.0,0.12260386]
[1743430425561,0.239627,83463.0,83443.0,0.011984]
[1743430425920,0.011982,83457.0,83444.0,0.12260386]
[1743430426137,0.011983,83447.0,83436.0,0.005]
[1743430426344,0.011983,83450.0,83436.0,0.005]
[1743430426345,0.011982,83455.0,83445.0,0.12260386]
[1743430426644,0.239657,83453.0,83445.0,0.12260386]
[1743430426799,0.239672,83448.0,83434.0,0.1646]
[1743430427012,0.011982,83456.0,83443.0,0.004]
[1743430427213,0.011982,83456.0,83444.0,0.12260386]
[1743430427214,0.011982,83453.0,83444.0,0.12260386]
[1743430427412,0.011984,83443.0,83428.0,0.37009054]
[1743430427782,0.011985,83436.0,83428.0,0.37009054]
[1743430428056,0.251689,83436.0,83428.0,0.37009054]
[1743430428296,0.251651,83449.0,83435.0,0.11307978]
[1743430428497,0.239658,83452.0,83435.0,0.11307978]
[1743430428725,0.239668,83449.0,83445.0,0.006]
[1743430428902,0.239668,83449.0,83435.0,0.11307978]
[1743430429300,0.251637,83454.0,83435.0,0.11307978]
[1743430429301,0.011981,83463.0,83436.0,0.00239689]
[1743430429500,0.001,83443.0,83440.0,0.251676]
[1743430429703,0.001,83443.0,83441.0,0.12260386]
[1743430429949,0.011985,83434.0,83410.0,0.37009054]
[1743430430140,0.239725,83429.0,83422.0,0.12260386]
[1743430430339,0.239725,83429.0,83410.0,0.37009054]
[1743430430340,0.011986,83425.0,83410.0,0.37009054]
[1743430430479,0.011987,83422.0,83410.0,0.37009054]
[1743430430890,0.011986,83425.0,83410.0,0.37009054]
[1743430431083,0.011987,83422.0,83421.0,0.003]
[1743430431732,0.251721,83426.0,83421.0,0.003]
[1743430431733,0.42061849,83440.0,83421.0,0.003]
[1743430431935,0.3,83435.0,83422.0,0.12260386]
[1743430432211,0.240712,83434.0,83422.0,0.12260386]
[1743430432419,0.001,83434.0,83422.0,0.11760386]
[1743430432574,0.239694,83440.0,83422.0,0.12000094]
[1743430432910,0.011985,83432.0,83422.0,0.11760386]
[1743430433080,0.011985,83432.0,83421.0,0.007]
[1743430433081,0.251731,83422.0,83421.0,0.007]
[1743430433310,0.251731,83422.0,83421.0,0.003]
[1743430433457,0.251731,83422.0,83421.0,0.002]
[1743430433656,0.011986,83426.0,83421.0,0.002]
[1743430433657,0.011985,83433.0,83421.0,0.002]
[1743430433851,2.994953,83474.0,83421.0,0.002]
[1743430433852,0.311983,83445.0,83422.0,0.12360386]
[1743430434110,0.239707,83435.0,83422.0,0.12600111]
[1743430434286,0.239714,83433.0,83422.0,0.12500094]
[1743430434486,0.01877276,83436.0,83422.0,0.12260386]
[1743430434690,0.011985,83436.0,83422.0,0.12260386]
[1743430434936,0.239739,83424.0,83422.0,0.12260386]
[1743430435136,0.239744,83422.0,83421.0,0.003]
[1743430435461,0.251731,83422.0,83421.0,0.003]
[1743430435994,0.239739,83424.0,83422.0,0.004]
[1743430436195,0.239739,83424.0,83421.0,0.12560386]
[1743430436196,0.251731,83422.0,83421.0,0.003]
[1743430436391,0.251731,83422.0,83421.0,0.002]
[1743430436618,0.251731,83422.0,83421.0,0.006]
[1743430436821,0.251731,83422.0,83421.0,0.002]
[1743430437624,0.251731,83422.0,83421.0,0.004]
[1743430438522,0.62224,83446.0,83421.0,0.12660386]
[1743430438668,0.49681849,83460.0,83438.0,0.011984]
[1743430438669,0.239647,83456.0,83438.0,0.011984]
[1743430438865,0.00013941,83448.0,83439.0,0.13458786]
[1743430439113,0.00013941,83448.0,83439.0,0.12260386]
[1743430439312,0.00013941,83448.0,83440.0,0.239692]
[1743430439515,0.00013941,83448.0,83441.0,0.12260386]
[1743430440330,0.011984,83440.0,83437.0,0.1646]
[1743430440540,0.00013941,83448.0,83423.0,0.00239694]
[1743430440541,0.011984,83438.0,83423.0,0.00239694]
[1743430440714,0.239713,83433.0,83424.0,0.12260386]
[1743430440916,0.251722,83425.0,83422.0,0.37009054]
[1743430441119,0.011986,83427.0,83422.0,0.4926944]
[1743430441325,0.011986,83425.0,83422.0,0.37009054]
[1743430441578,0.3474,83449.0,83424.0,0.011986]
[1743430441704,0.239682,83444.0,83427.0,0.011986]
[1743430441908,0.011984,83441.0,83428.0,0.12260386]
[1743430442109,0.011985,83432.0,83428.0,0.12260386]
[1743430442308,0.01877065,83447.0,83422.0,0.37009054]
[1743430442309,0.01877065,83447.0,83429.0,0.12260386]
[1743430442557,0.01877065,83447.0,83433.0,0.011985]
[1743430442758,0.239668,83449.0,83434.0,0.13458886]
[1743430442957,0.23980941,83448.0,83434.0,0.12260386]
[1743430443154,0.00013941,83448.0,83434.0,0.12260386]
[1743430443362,0.011984,83442.0,83434.0,0.12260386]
[1743430443570,0.011984,83440.0,83434.0,0.12260386]
[1743430443736,0.011984,83440.0,83428.0,0.1706]
[1743430443737,0.011985,83432.0,83428.0,0.1706]
[1743430443970,0.011984,83442.0,83429.0,0.12260386]
[1743430444175,0.011983,83445.0,83429.0,0.12500084]
[1743430444408,0.251666,83444.0,83429.0,0.12500084]
[1743430444576,0.001,83432.0,83429.0,0.12500084]
[1743430444777,0.001,83432.0,83429.0,0.12260386]
[1743430445048,0.251683,83438.0,83429.0,0.12260386]
[1743430445263,0.239713,83433.0,83429.0,0.12260386]
[1743430445459,0.239705,83436.0,83429.0,0.12360386]
[1743430445662,0.239721,83430.0,83429.0,0.001]
[1743430445794,0.239717,83432.0,83429.0,0.001]
[1743430446017,0.239717,83432.0,83422.0,0.37009054]
[1743430446018,0.011983,83446.0,83430.0,0.12260386]
[1743430446223,0.239695,83440.0,83434.0,0.003]
[1743430446441,0.239691,83441.0,83435.0,0.12260386]
[1743430446616,0.239689,83442.0,83435.0,0.12260386]
[1743430446939,0.01877038,83447.0,83437.0,0.011985]
[1743430447193,0.06692973,83479.0,83447.0,0.239673]
[1743430447308,0.06692973,83479.0,83447.0,0.49509065]
[1743430447309,0.239628,83463.0,83447.0,0.49509065]
[1743430447508,0.011981,83461.0,83447.0,0.4926944]
[1743430447712,0.011982,83455.0,83447.0,0.4926944]
[1743430447940,0.011982,83458.0,83447.0,0.4926944]
[1743430448217,0.011982,83457.0,83447.0,0.4926944]
[1743430448366,0.239665,83450.0,83447.0,0.4926944]
[1743430448587,0.25165,83451.0,83447.0,0.4926944]
[1743430448786,0.251647,83450.0,83447.0,0.4926944]
[1743430448989,0.239655,83454.0,83447.0,0.4946944]
[1743430449188,0.011982,83457.0,83447.0,0.4946944]
[1743430449189,0.011983,83450.0,83447.0,0.37209054]
[1743430449391,0.25179241,83448.0,83447.0,0.37509054]
[1743430449566,0.23980941,83448.0,83447.0,0.37509054]
[1743430449749,0.00013941,83448.0,83447.0,0.37509054]
[1743430450135,0.25179241,83448.0,83447.0,0.37509054]
[1743430450254,0.00013941,83448.0,83447.0,0.4976944]
[1743430450454,0.00013941,83448.0,83447.0,0.7373674]
[1743430450892,0.00013941,83448.0,83447.0,0.9019274]
[1743430451095,0.00013941,83448.0,83447.0,0.9139104]
[1743430451295,4.1e-07,83448.0,83447.0,2.25037319]
[1743430452135,4.1e-07,83448.0,83447.0,2.24537319]
[1743430452676,0.00100041,83448.0,83447.0,2.25537319]
[1743430452888,0.00100041,83448.0,83447.0,2.24937319]
[1743430453089,0.00116911,83448.0,83447.0,2.25537319]
[1743430453264,0.00116911,83448.0,83447.0,1.0440704]
[1743430453771,0.00016911,83448.0,83447.0,1.0400704]
[1743430454198,0.00116911,83448.0,83447.0,1.0430704]
[1743430454683,0.00016911,83448.0,83447.0,1.0400704]
[1743430454881,0.00116911,83448.0,83447.0,1.0430704]
[1743430455081,0.00116911,83448.0,83447.0,1.0370704]
[1743430455460,0.00116911,83448.0,83447.0,1.0430704]
[1743430455687,0.00116911,83448.0,83447.0,0.6208944]
[1743430455889,0.00116911,83448.0,83447.0,1.0370704]
[1743430456061,0.00116911,83448.0,83447.0,1.0430704]
[1743430456413,0.239519,83501.0,83484.0,0.011978]
[1743430456664,0.00046593,83487.0,83485.0,0.12260386]
[1743430456868,0.011978,83480.0,83459.0,0.011981]
[1743430457081,0.011978,83483.0,83467.0,0.01198]
[1743430457082,0.23957,83483.0,83467.0,0.01198]
[1743430457286,0.00046593,83487.0,83473.0,0.011979]
[1743430457491,0.00046593,83487.0,83478.0,0.239583]
[1743430457689,0.00046593,83487.0,83484.0,0.003]
[1743430457811,0.00046593,83487.0,83485.0,0.12260386]
[1743430458210,0.00046593,83487.0,82878.0,0.09510953]
[1743430458211,0.011978,83480.0,83467.0,0.37009043]
[1743430458438,0.239573,83482.0,83473.0,0.003]
[1743430458439,0.011978,83482.0,83473.0,0.003]
[1743430458658,0.01116674,83486.0,83480.0,0.011978]
[1743430458984,0.01116674,83486.0,83481.0,0.12260386]
[1743430459184,0.01116674,83486.0,83485.0,0.006]
[1743430459305,0.01116674,83486.0,83485.0,0.12260386]
[1743430459512,0.239566,83484.0,83474.0,0.37009043]
[1743430459710,0.011978,83482.0,83475.0,0.12260386]
[1743430459930,0.23957,83483.0,83475.0,0.12260386]
[1743430460211,0.239566,83484.0,83475.0,0.12260386]
[1743430460450,0.25072974,83486.0,83485.0,0.005]
[1743430460653,0.26270774,83486.0,83485.0,0.005]
[1743430461082,0.02314474,83486.0,83475.0,0.12260386]
[1743430461285,0.239589,83476.0,83475.0,0.005]
[1743430461484,0.251568,83476.0,83475.0,0.005]
[1743430461720,0.56273474,83476.0,83475.0,0.005]
[1743430461892,0.56273474,83476.0,83437.0,0.011985]
[1743430461893,0.011981,83465.0,83448.0,0.16444]